fUSD/lending_fUSD_20240521
["ID","MTS","AMOUNT","RATE_DAILY","PERIOD"]
[327606237,1716251450107,-500.0,0.0003863,6]
[327606239,1716251450117,-500.0,0.0003863,6]
[327606241,1716251450129,-500.0,0.0003863,6]
[327606243,1716251450138,-500.0,0.0003863,6]
[327606245,1716251450147,-500.0,0.0003863,6]
[327606247,1716251450156,-500.0,0.0003863,6]
[327606249,1716251450165,-500.0,0.0003863,6]
[327606250,1716251450175,-500.0,0.0003863,6]
[327606252,1716251450184,-500.0,0.0003863,6]
[327606254,1716251450193,-500.0,0.0003863,6]
[327606257,1716251450203,-692.16,0.0003863,6]
[327606258,1716251450213,-500.0,0.0003863,6]
[327606260,1716251450223,-500.0,0.0003863,6]
[327606262,1716251450232,-755.29,0.0003863,6]
[327606264,1716251450241,-898.56,0.0003863,6]
[327606266,1716251450251,-500.0,0.0003863,6]
[327606268,1716251450260,-500.0,0.0003863,6]
[327606270,1716251450270,-614.24,0.0003863,6]
[327606272,1716251450279,-500.0,0.0003863,6]
[327606274,1716251450288,-500.0,0.0003863,6]
[327606276,1716251450298,-685.07,0.0003863,6]
[327606278,1716251450308,-586.95,0.0003863,6]
[327606280,1716251450318,-500.0,0.0003863,6]
[327606282,1716251450327,-500.0,0.0003863,6]
[327606284,1716251450336,-500.0,0.0003863,6]
[327606286,1716251450346,-500.0,0.0003863,6]
[327606288,1716251450355,-500.0,0.0003863,6]
[327606290,1716251450364,-160.55,0.0003863,6]
[327606292,1716251450374,-1113.15,0.0003863,6]
[327606294,1716251450383,-500.0,0.0003863,6]
[327606296,1716251450393,-500.0,0.0003863,6]
[327606298,1716251450403,-500.0,0.0003863,6]
[327606300,1716251450413,-500.0,0.0003863,6]
[327606302,1716251450422,-500.0,0.0003863,6]
[327606304,1716251450432,-725.38,0.0003863,6]
[327606306,1716251450441,-500.0,0.0003863,6]
[327606308,1716251450451,-500.0,0.0003863,6]
[327606310,1716251450461,-985.85,0.0003863,6]
[327606312,1716251450470,-500.0,0.0003863,6]
[327606314,1716251450480,-883.37,0.0003863,6]
[327606316,1716251450489,-500.0,0.0003863,6]
[327606318,1716251450499,-500.0,0.0003863,6]
[327606320,1716251450508,-500.0,0.0003863,6]
[327606322,1716251450518,-1548.91,0.0003863,6]
[327606324,1716251450528,-500.0,0.0003863,6]
[327606326,1716251450538,-1005.7,0.0003863,6]
[327606328,1716251450547,-543.87917652,0.0003863,6]
[327606330,1716251450557,-571.34,0.0003863,6]
[327606332,1716251450567,-500.0,0.0003863,6]
[327606334,1716251450576,-655.22,0.0003863,6]
[327606336,1716251450586,-846.43,0.0003863,6]
[327606338,1716251450596,-568.99,0.0003863,6]
[327606340,1716251450606,-500.0,0.0003863,6]
[327606342,1716251450615,-500.0,0.0003863,6]
[327606344,1716251450624,-500.0,0.0003863,6]
[327606346,1716251450634,-507.9,0.0003863,6]
[327606349,1716251450644,-787.32,0.0003863,6]
[327606351,1716251450653,-500.0,0.0003863,6]
[327606353,1716251450663,-500.0,0.0003863,6]
[327606355,1716251450673,-500.0,0.0003863,6]
[327606357,1716251450683,-500.0,0.0003863,6]
[327606359,1716251450693,-888.88,0.0003863,6]
[327606361,1716251450703,-500.0,0.0003863,6]
[327606363,1716251450713,-668.03,0.0003863,6]
[327606365,1716251450722,-575.63,0.0003863,6]
[327606367,1716251450732,-1152.64,0.0003863,6]
[327606369,1716251450742,-584.66,0.0003863,6]
[327606371,1716251450751,-500.0,0.0003863,6]
[327606373,1716251450761,-500.0,0.0003863,6]
[327606375,1716251450771,-525.02,0.0003863,6]
[327606377,1716251450781,-1163.35,0.0003863,6]
[327606379,1716251450791,-500.0,0.0003863,6]
[327606381,1716251450802,-992.41,0.0003863,6]
[327606383,1716251450811,-500.0,0.0003863,6]
[327606385,1716251450821,-500.0,0.0003863,6]
[327606387,1716251450831,-686.58,0.0003863,6]
[327606389,1716251450841,-1053.14,0.0003863,6]
[327606391,1716251450850,-1185.54,0.0003863,6]
[327606393,1716251450860,-500.03,0.0003863,6]
[327606395,1716251450869,-500.0,0.0003863,6]
[327606397,1716251450880,-500.0,0.0003863,6]
[327606398,1716251450891,-500.0,0.0003863,6]
[327606399,1716251450902,-500.0,0.0003863,6]
[327606400,1716251450917,-500.0,0.0003863,6]
[327606401,1716251450926,-886.98,0.0003863,6]
[327606402,1716251450937,-1776.68,0.0003863,6]
[327606403,1716251450949,-300.0,0.0003863,6]
[327606404,1716251450961,-554.6,0.0003863,6]
[327606405,1716251450971,-611.84884379,0.0003863,6]
[327606406,1716251450982,-1578.11,0.0003863,6]
[327606408,1716251450995,-500.0,0.0003863,6]
[327606410,1716251451007,-500.0,0.0003863,6]
[327606412,1716251451018,-500.0,0.0003863,6]
[327606414,1716251451028,-500.0,0.0003863,6]
[327606416,1716251451038,-807.4,0.0003863,6]
[327606418,1716251451048,-500.0,0.0003863,6]
[327606421,1716251451058,-588.6,0.0003863,6]
[327606423,1716251451068,-1528.2,0.0003863,6]
[327606425,1716251451078,-522.33,0.0003863,6]
[327606427,1716251451088,-500.0,0.0003863,6]
[327606429,1716251451098,-576.74,0.0003863,6]
[327606431,1716251451107,-500.0,0.0003863,6]
[327606433,1716251451117,-500.0,0.0003863,6]
[327606435,1716251451126,-500.0,0.0003863,6]
[327606437,1716251451136,-500.0,0.0003863,6]
[327606439,1716251451146,-760.73,0.0003863,6]
[327606441,1716251451156,-779.47,0.0003863,6]
[327606443,1716251451166,-823.2,0.0003863,6]
[327606445,1716251451178,-1646.98,0.0003863,6]
[327606447,1716251451187,-500.0,0.0003863,6]
[327606449,1716251451197,-500.0,0.0003863,6]
[327606451,1716251451206,-542.07,0.0003863,6]
[327606453,1716251451216,-721.22,0.0003863,6]
[327606455,1716251451226,-730.1,0.0003863,6]
[327606457,1716251451236,-996.36,0.0003863,6]
[327606459,1716251451245,-688.74,0.0003863,6]
[327606461,1716251451255,-500.0,0.0003863,6]
[327606463,1716251451265,-500.0,0.0003863,6]
[327606465,1716251451275,-587.21,0.0003863,6]
[327606467,1716251451285,-500.0,0.0003863,6]
[327606470,1716251451294,-532.96,0.0003863,6]
[327606472,1716251451304,-1000.0,0.0003863,6]
[327606474,1716251451314,-1201.29,0.0003863,6]
[327606476,1716251451324,-644.66,0.0003863,6]
[327606478,1716251451334,-500.0,0.0003863,6]
[327606480,1716251451344,-565.18,0.0003863,6]
[327606482,1716251451354,-516.6,0.0003863,6]
[327606484,1716251451364,-500.0,0.0003863,6]
[327606486,1716251451373,-500.0,0.0003863,6]
[327606488,1716251451383,-500.0,0.0003863,6]
[327606490,1716251451392,-500.0,0.0003863,6]
[327606492,1716251451402,-1308.76,0.0003863,6]
[327606494,1716251451412,-500.0,0.0003863,6]
[327606496,1716251451424,-602.65,0.0003863,6]
[327606498,1716251451433,-722.53,0.0003863,6]
[327606500,1716251451444,-500.0,0.0003863,6]
[327606502,1716251451454,-500.0,0.0003863,6]
[327606504,1716251451464,-500.0,0.0003863,6]
[327606506,1716251451474,-151.0,0.0003863,14]
[327606508,1716251451483,-500.0,0.0003863,6]
[327606511,1716251451493,-500.0,0.0003863,6]
[327606513,1716251451503,-500.0,0.0003863,6]
[327606515,1716251451513,-998.36,0.0003863,6]
[327606517,1716251451523,-1126.64,0.0003863,6]
[327606519,1716251451533,-958.61,0.0003863,6]
[327606521,1716251451543,-500.0,0.0003863,6]
[327606523,1716251451553,-151.0,0.0003863,14]
[327606525,1716251451562,-1031.96,0.0003863,6]
[327606527,1716251451572,-671.98,0.0003863,6]
[327606529,1716251451581,-504.37,0.0003863,6]
[327606531,1716251451591,-775.69,0.0003863,6]
[327606533,1716251451600,-1303.54,0.0003863,6]
[327606535,1716251451611,-885.34,0.0003863,6]
[327606537,1716251451623,-536.64,0.0003863,6]
[327606539,1716251451633,-500.0,0.0003863,6]
[327606541,1716251451642,-500.0,0.0003863,6]
[327606543,1716251451652,-1526.67,0.0003863,6]
[327606545,1716251451662,-500.0,0.0003863,6]
[327606547,1716251451674,-500.0,0.0003863,6]
[327606550,1716251451684,-500.0,0.0003863,6]
[327606552,1716251451693,-1388.21,0.0003863,6]
[327606554,1716251451703,-1802.47,0.0003863,6]
[327606556,1716251451712,-658.19,0.0003863,6]
[327606558,1716251451722,-1502.67,0.0003863,6]
[327606560,1716251451731,-2238.94,0.0003863,6]
[327606562,1716251451743,-735.18,0.0003863,6]
[327606564,1716251451754,-986.72,0.0003863,6]
[327606566,1716251451764,-500.0,0.0003863,6]
[327606568,1716251451774,-730.65,0.0003863,6]
[327606570,1716251451784,-500.0,0.0003863,6]
[327606572,1716251451793,-1434.51,0.0003863,6]
[327606574,1716251451804,-500.0,0.0003863,6]
[327606576,1716251451814,-851.76,0.0003863,6]
[327606578,1716251451824,-1497.88,0.0003863,6]
[327606581,1716251451834,-500.0,0.0003863,6]
[327606583,1716251451844,-500.0,0.0003863,6]
[327606585,1716251451853,-1656.82,0.0003863,6]
[327606587,1716251451864,-500.0,0.0003863,6]
[327606589,1716251451874,-500.0,0.0003863,6]
[327606591,1716251451883,-807.85,0.0003863,6]
[327606593,1716251451893,-649.77,0.0003863,6]
[327606595,1716251451908,-1188.37,0.0003863,6]
[327606597,1716251451919,-500.0,0.0003863,6]
[327606599,1716251451929,-500.0,0.0003863,6]
[327606601,1716251451942,-1336.23,0.0003863,6]
[327606604,1716251451951,-500.0,0.0003863,6]
[327606605,1716251451962,-500.0,0.0003863,6]
[327606608,1716251451971,-151.0,0.0003863,7]
[327606610,1716251451982,-335.68025014,0.0003863,6]
[327606612,1716251451992,-2042.19,0.0003863,6]
[327606614,1716251452002,-892.06,0.0003863,6]
[327606616,1716251452011,-937.98,0.0003863,6]
[327606618,1716251452021,-2088.96,0.0003863,6]
[327606620,1716251452030,-500.0,0.0003863,6]
[327606622,1716251452039,-500.0,0.0003863,6]
[327606624,1716251452049,-572.69,0.0003863,6]
[327606626,1716251452059,-500.0,0.0003863,6]
[327606628,1716251452068,-1910.71,0.0003863,6]
[327606630,1716251452077,-654.42,0.0003863,6]
[327606632,1716251452088,-500.0,0.0003863,6]
[327606634,1716251452097,-681.23,0.0003863,6]
[327606636,1716251452106,-1438.95,0.0003863,6]
[327606638,1716251452116,-968.35,0.0003863,6]
[327606640,1716251452126,-967.36,0.0003863,6]
[327606642,1716251452136,-500.0,0.0003863,6]
[327606644,1716251452146,-600.15,0.0003863,6]
[327606646,1716251452155,-500.0,0.0003863,6]
[327606649,1716251452168,-649.72,0.0003863,6]
[327606651,1716251452179,-500.0,0.0003863,6]
[327606653,1716251452188,-809.45,0.0003863,6]
[327606655,1716251452197,-710.23,0.0003863,6]
[327606657,1716251452208,-500.0,0.0003863,6]
[327606659,1716251452218,-500.0,0.0003863,6]
[327606661,1716251452227,-500.0,0.0003863,6]
[327606663,1716251452237,-500.0,0.0003863,6]
[327606665,1716251452246,-971.53,0.0003863,6]
[327606667,1716251452256,-1455.65,0.0003863,6]
[327606669,1716251452265,-151.0,0.0003863,14]
[327606671,1716251452275,-500.0,0.0003863,6]
[327606673,1716251452284,-500.0,0.0003863,6]
[327606675,1716251452294,-500.0,0.0003863,6]
[327606677,1716251452303,-183.4094336,0.0003863,2]
[327606679,1716251452313,-500.0,0.0003863,6]
[327606681,1716251452323,-1460.36,0.0003863,6]
[327606684,1716251452333,-500.0,0.0003863,6]
[327606685,1716251452342,-906.12,0.0003863,6]
[327606688,1716251452352,-500.0,0.0003863,6]
[327606707,1716251452609,-529.44,0.0003863,6]
[327606708,1716251452618,-500.0,0.0003863,6]
[327606711,1716251452628,-1158.25,0.0003863,6]
[327606713,1716251452637,-1291.3,0.0003863,6]
[327606715,1716251452647,-700.25,0.0003863,6]
[327606716,1716251452656,-896.41,0.0003863,6]
[327606719,1716251452667,-500.0,0.0003863,6]
[327606720,1716251452676,-582.68,0.0003863,6]
[327606722,1716251452686,-546.0,0.0003863,6]
[327606724,1716251452695,-151.0,0.0003863,14]
[327606726,1716251452704,-1477.52,0.0003863,6]
[327606729,1716251452714,-1653.59,0.0003863,6]
[327606730,1716251452723,-546.51,0.0003863,6]
[327606733,1716251452733,-547.65,0.0003863,6]
[327606735,1716251452742,-418.38364335,0.0003863,6]
[327606737,1716251452752,-500.0,0.0003863,6]
[327606739,1716251452761,-1382.4,0.0003863,6]
[327606741,1716251452771,-1776.12,0.0003863,6]
[327606743,1716251452781,-1130.8,0.0003863,6]
[327606745,1716251452790,-2149.53,0.0003863,6]
[327606747,1716251452800,-500.0,0.0003863,6]
[327606749,1716251452809,-261.159603,0.0003863,14]
[327606751,1716251452818,-912.64,0.0003863,6]
[327606753,1716251452828,-151.0,0.0003863,14]
[327606755,1716251452837,-500.0,0.0003863,6]
[327606756,1716251452847,-707.97,0.0003863,6]
[327606759,1716251452856,-1142.94,0.0003863,6]
[327606761,1716251452866,-1144.22,0.0003863,6]
[327606763,1716251452875,-956.51,0.0003863,6]
[327606765,1716251452885,-500.0,0.0003863,6]
[327606767,1716251452894,-784.66,0.0003863,6]
[327606768,1716251452905,-1101.32,0.0003863,6]
[327606771,1716251452920,-1306.12,0.0003863,6]
[327606773,1716251452930,-500.0,0.0003863,6]
[327606775,1716251452939,-1595.29,0.0003863,6]
[327606777,1716251452950,-500.0,0.0003863,6]
[327606779,1716251452959,-500.0,0.0003863,6]
[327606781,1716251452968,-500.0,0.0003863,6]
[327606783,1716251452978,-2693.99,0.0003863,6]
[327606785,1716251452990,-1019.25,0.0003863,6]
[327606787,1716251453000,-1220.0,0.0003863,6]
[327606789,1716251453010,-786.64,0.0003863,6]
[327606791,1716251453019,-500.0,0.0003863,6]
[327606793,1716251453029,-500.0,0.0003863,6]
[327606795,1716251453039,-2433.39,0.0003863,6]
[327606797,1716251453048,-500.0,0.0003863,6]
[327606799,1716251453058,-1192.5,0.0003863,6]
[327606801,1716251453067,-500.0,0.0003863,6]
[327606803,1716251453077,-575.34,0.0003863,6]
[327606805,1716251453088,-513.37,0.0003863,6]
[327606807,1716251453097,-151.0,0.0003863,14]
[327606809,1716251453106,-757.38,0.0003863,6]
[327606811,1716251453116,-500.0,0.0003863,6]
[327606812,1716251453125,-515.97,0.0003863,6]
[327606814,1716251453134,-500.0,0.0003863,6]
[327606816,1716251453145,-500.0,0.0003863,6]
[327606817,1716251453155,-1093.46,0.0003863,6]
[327606819,1716251453164,-500.0,0.0003863,6]
[327606820,1716251453176,-500.0,0.0003863,6]
[327606822,1716251453185,-500.0,0.0003863,6]
[327606823,1716251453194,-500.0,0.0003863,6]
[327606825,1716251453206,-718.92,0.0003863,6]
[327606826,1716251453215,-500.0,0.0003863,6]
[327606828,1716251453225,-500.0,0.0003863,6]
[327606829,1716251453234,-981.99,0.0003863,6]
[327606831,1716251453243,-1738.01,0.0003863,6]
[327606833,1716251453253,-598.57,0.0003863,6]
[327606834,1716251453262,-500.0,0.0003863,6]
[327606836,1716251453271,-554.04,0.0003863,6]
[327606837,1716251453281,-500.0,0.0003863,6]
[327606839,1716251453291,-2363.7,0.0003863,6]
[327606841,1716251453300,-500.0,0.0003863,6]
[327606842,1716251453311,-500.0,0.0003863,6]
[327606844,1716251453320,-1159.01,0.0003863,6]
[327606845,1716251453330,-1359.9,0.0003863,6]
[327606847,1716251453339,-2281.4,0.0003863,6]
[327606849,1716251453349,-779.27,0.0003863,6]
[327606850,1716251453359,-500.0,0.0003863,6]
[327606852,1716251453368,-1001.18,0.0003863,6]
[327606854,1716251453377,-876.65,0.0003863,6]
[327606855,1716251453386,-670.98,0.0003863,6]
[327606857,1716251453395,-607.63,0.0003863,6]
[327606858,1716251453405,-500.0,0.0003863,6]
[327606860,1716251453416,-151.0,0.0003863,14]
[327606862,1716251453426,-500.0,0.0003863,6]
[327606864,1716251453436,-1834.88,0.0003863,6]
[327606865,1716251453445,-500.0,0.0003863,6]
[327606867,1716251453455,-500.0,0.0003863,6]
[327606869,1716251453465,-500.0,0.0003863,6]
[327606870,1716251453474,-717.9,0.0003863,6]
[327606872,1716251453483,-151.0,0.0003863,14]
[327606874,1716251453493,-151.0,0.0003863,14]
[327606875,1716251453502,-500.0,0.0003863,6]
[327606877,1716251453511,-1051.8,0.0003863,6]
[327606879,1716251453521,-1073.27,0.0003863,6]
[327606881,1716251453530,-500.0,0.0003863,6]
[327606882,1716251453540,-500.0,0.0003863,6]
[327606884,1716251453551,-934.32,0.0003863,6]
[327606886,1716251453561,-500.0,0.0003863,6]
[327606887,1716251453570,-810.6,0.0003863,6]
[327606889,1716251453579,-2422.32,0.0003863,6]
[327606891,1716251453589,-500.0,0.0003863,6]
[327606892,1716251453598,-533.77,0.0003863,6]
[327606894,1716251453607,-832.99,0.0003863,6]
[327606896,1716251453617,-948.71,0.0003863,6]
[327606897,1716251453626,-1045.43,0.0003863,6]
[327606899,1716251453635,-500.0,0.0003863,6]
[327606901,1716251453645,-1378.23,0.0003863,6]
[327606903,1716251453655,-500.0,0.0003863,6]
[327606904,1716251453664,-500.0,0.0003863,6]
[327606906,1716251453675,-1385.89,0.0003863,6]
[327606908,1716251453685,-735.9,0.0003863,6]
[327606909,1716251453695,-2134.15,0.0003863,6]
[327606911,1716251453704,-500.0,0.0003863,6]
[327606913,1716251453713,-1321.75,0.0003863,6]
[327606914,1716251453723,-4176.47,0.0003863,6]
[327606916,1716251453732,-500.0,0.0003863,6]
[327606918,1716251453741,-638.78,0.0003863,6]
[327606919,1716251453751,-500.0,0.0003863,6]
[327606921,1716251453760,-903.38,0.0003863,6]
[327606923,1716251453769,-500.0,0.0003863,6]
[327606925,1716251453779,-500.0,0.0003863,6]
[327606926,1716251453788,-682.3,0.0003863,6]
[327606928,1716251453798,-151.0,0.0003863,14]
[327606930,1716251453807,-500.0,0.0003863,6]
[327606931,1716251453816,-5255.83,0.0003863,6]
[327606933,1716251453826,-1490.08,0.0003863,6]
[327606935,1716251453835,-1235.4,0.0003863,6]
[327606937,1716251453844,-500.0,0.0003863,6]
[327606938,1716251453854,-1386.99,0.0003863,6]
[327606940,1716251453863,-558.96,0.0003863,6]
[327606942,1716251453873,-500.0,0.0003863,6]
[327606943,1716251453882,-500.0,0.0003863,6]
[327606945,1716251453891,-1058.43,0.0003863,6]
[327606947,1716251453906,-500.0,0.0003863,6]
[327606949,1716251453916,-500.0,0.0003863,6]
[327606950,1716251453926,-1534.77,0.0003863,6]
[327606952,1716251453936,-3582.88,0.0003863,6]
[327606954,1716251453947,-500.0,0.0003863,6]
[327606955,1716251453956,-500.0,0.0003863,6]
[327606957,1716251453965,-889.89,0.0003863,6]
[327606959,1716251453974,-702.24,0.0003863,6]
[327606960,1716251453985,-1473.08,0.0003863,6]
[327606962,1716251453995,-824.38,0.0003863,6]
[327606964,1716251454004,-1075.29,0.0003863,6]
[327606966,1716251454014,-500.0,0.0003863,6]
[327606968,1716251454023,-500.0,0.0003863,6]
[327606970,1716251454032,-151.0,0.0003863,14]
[327606972,1716251454041,-500.0,0.0003863,6]
[327606974,1716251454051,-848.98,0.0003863,6]
[327606976,1716251454060,-500.0,0.0003863,6]
[327606977,1716251454069,-1850.75,0.0003863,6]
[327606978,1716251454079,-816.36,0.0003863,6]
[327606979,1716251454088,-151.0,0.0003863,14]
[327606980,1716251454098,-500.0,0.0003863,6]
[327606981,1716251454108,-1173.86,0.0003863,6]
[327606982,1716251454117,-1126.09,0.0003863,6]
[327606983,1716251454127,-1373.42,0.0003863,6]
[327606984,1716251454137,-1791.98,0.0003863,6]
[327606985,1716251454146,-535.73,0.0003863,6]
[327606986,1716251454155,-500.0,0.0003863,6]
[327606987,1716251454166,-1567.47,0.0003863,6]
[327606988,1716251454176,-500.0,0.0003863,6]
[327606989,1716251454185,-1256.49,0.0003863,6]
[327606990,1716251454194,-596.84,0.0003863,6]
[327606991,1716251454204,-500.0,0.0003863,6]
[327606992,1716251454213,-1271.94,0.0003863,6]
[327606993,1716251454223,-866.22,0.0003863,6]
[327606995,1716251454232,-500.0,0.0003863,6]
[327606996,1716251454241,-599.17,0.0003863,6]
[327606997,1716251454251,-689.15,0.0003863,6]
[327606999,1716251454260,-500.0,0.0003863,6]
[327607001,1716251454270,-938.76,0.0003863,6]
[327607003,1716251454279,-500.0,0.0003863,6]
[327607005,1716251454289,-1608.15,0.0003863,6]
[327607007,1716251454298,-500.0,0.0003863,6]
[327607009,1716251454307,-692.45,0.0003863,6]
[327607011,1716251454317,-500.0,0.0003863,6]
[327607013,1716251454326,-500.0,0.0003863,6]
[327607015,1716251454335,-500.0,0.0003863,6]
[327607017,1716251454345,-500.0,0.0003863,6]
[327607019,1716251454354,-500.0,0.0003863,6]
[327607021,1716251454365,-630.55,0.0003863,6]
[327607024,1716251454374,-151.0,0.0003863,14]
[327607026,1716251454384,-604.39,0.0003863,6]
[327607028,1716251454393,-933.58,0.0003863,6]
[327607030,1716251454402,-11563.34,0.0003863,6]
[327607032,1716251454411,-500.0,0.0003863,6]
[327607034,1716251454421,-855.51,0.0003863,6]
[327607036,1716251454431,-999.11,0.0003863,6]
[327607038,1716251454440,-500.0,0.0003863,6]
[327607040,1716251454449,-1823.92,0.0003863,6]
[327607041,1716251454459,-500.0,0.0003863,6]
[327607044,1716251454468,-1558.57,0.0003863,6]
[327607045,1716251454477,-1134.72,0.0003863,6]
[327607048,1716251454487,-151.0,0.0003863,14]
[327607050,1716251454496,-500.0,0.0003863,6]
[327607052,1716251454506,-498.68,0.0003863,6]
[327607053,1716251454515,-500.0,0.0003863,6]
[327607055,1716251454524,-500.0,0.0003863,6]
[327607057,1716251454533,-2938.3,0.0003863,6]
[327607059,1716251454542,-500.0,0.0003863,6]
[327607061,1716251454551,-500.0,0.0003863,6]
[327607063,1716251454561,-500.0,0.0003863,6]
[327607066,1716251454570,-558.65,0.0003863,6]
[327607067,1716251454580,-1171.13,0.0003863,6]
[327607069,1716251454589,-500.0,0.0003863,6]
[327607072,1716251454599,-1448.49,0.0003863,6]
[327607073,1716251454608,-500.0,0.0003863,6]
[327607075,1716251454618,-897.46,0.0003863,6]
[327607077,1716251454627,-500.0,0.0003863,6]
[327607079,1716251454636,-942.52,0.0003863,6]
[327607081,1716251454645,-2464.65,0.0003863,6]
[327607083,1716251454655,-648.24,0.0003863,6]
[327607086,1716251454664,-500.0,0.0003863,6]
[327607087,1716251454676,-825.3,0.0003863,6]
[327607090,1716251454686,-908.23,0.0003863,6]
[327607091,1716251454694,-151.0,0.0003863,14]
[327607093,1716251454704,-505.82,0.0003863,6]
[327607095,1716251454713,-500.0,0.0003863,6]
[327607097,1716251454723,-957.34,0.0003863,6]
[327607099,1716251454732,-792.74,0.0003863,6]
[327607101,1716251454741,-151.0,0.0003863,14]
[327607103,1716251454750,-3066.08,0.0003863,6]
[327607105,1716251454759,-5389.99,0.0003863,6]
[327607107,1716251454769,-1773.53,0.0003863,6]
[327607109,1716251454779,-500.0,0.0003863,6]
[327607111,1716251454789,-6275.09,0.0003863,6]
[327607113,1716251454798,-500.0,0.0003863,6]
[327607115,1716251454808,-500.0,0.0003863,6]
[327607117,1716251454817,-500.0,0.0003863,6]
[327607120,1716251454827,-500.0,0.0003863,6]
[327607122,1716251454836,-768.88,0.0003863,6]
[327607124,1716251454846,-887.96,0.0003863,6]
[327607126,1716251454854,-760.44,0.0003863,6]
[327607128,1716251454864,-1778.03,0.0003863,6]
[327607130,1716251454873,-500.0,0.0003863,6]
[327607132,1716251454885,-1791.88,0.0003863,6]
[327607134,1716251454894,-151.0,0.0003863,14]
[327607136,1716251454904,-500.0,0.0003863,6]
[327607138,1716251454915,-500.0,0.0003863,6]
[327607140,1716251454926,-500.0,0.0003863,6]
[327607142,1716251454940,-500.0,0.0003863,2]
[327607145,1716251454956,-1086.17,0.0003863,6]
[327607147,1716251454970,-500.0,0.0003863,6]
[327607150,1716251454981,-1465.79,0.0003863,6]
[327607152,1716251454996,-512.61013276,0.0003863,6]
[327607155,1716251455010,-151.0,0.0003863,14]
[327607157,1716251455024,-1027.27,0.0003863,6]
[327607160,1716251455037,-1402.43,0.0003863,6]
[327607162,1716251455053,-1921.79,0.0003863,6]
[327607165,1716251455067,-1307.45,0.0003863,6]
[327607167,1716251455080,-1484.52,0.0003863,6]
[327607170,1716251455094,-500.0,0.0003863,6]
[327607172,1716251455106,-500.0,0.0003863,6]
[327607174,1716251455120,-31037.94,0.0003863,6]
[327607177,1716251455133,-3946.65,0.0003863,6]
[327607179,1716251455144,-762.87,0.0003863,6]
[327607181,1716251455156,-878.87,0.0003863,6]
[327607184,1716251455170,-151.0,0.0003863,14]
[327607186,1716251455183,-1008.36,0.0003863,6]
[327607189,1716251455196,-536.09,0.0003863,6]
[327607191,1716251455210,-8518.22,0.0003863,6]
[327607194,1716251455225,-3289.63,0.0003863,6]
[327607196,1716251455240,-500.0,0.0003863,6]
[327607199,1716251455252,-3025.89,0.0003863,6]
[327607201,1716251455264,-500.0,0.0003863,6]
[327607203,1716251455276,-703.51,0.0003863,6]
[327607205,1716251455290,-2157.3,0.0003863,6]
[327607208,1716251455307,-253.7503524,0.0003863,6]
[327607210,1716251455319,-773.69,0.0003863,6]
[327607213,1716251455333,-500.0,0.0003863,2]
[327607215,1716251455348,-3211.02,0.0003863,6]